fUSD/lending_fUSD_20250322
["ID","MTS","AMOUNT","RATE_DAILY","PERIOD"]
[356545167,1742637089245,-691.76,0.00049315,120]
[356545168,1742637089254,-500.0,0.00049315,120]
[356545169,1742637089264,-802.29,0.00049315,120]
[356545170,1742637089274,-500.0,0.00049315,120]
[356545171,1742637089283,-580.53,0.00049315,120]
[356545172,1742637089293,-2210.41,0.00049315,120]
[356545173,1742637089302,-904.56,0.00049315,120]
[356545174,1742637089310,-527.75868387,0.00049315,120]
[356545175,1742637089319,-500.0,0.00049315,120]
[356545176,1742637089329,-793.91,0.00049315,120]
[356545177,1742637089340,-706.55,0.00049315,120]
[356545178,1742637089351,-834.3,0.00049315,120]
[356545179,1742637089361,-671.78,0.00049315,120]
[356545180,1742637089370,-500.0,0.00049315,120]
[356545181,1742637089380,-500.0,0.00049315,120]
[356545182,1742637089390,-1807.75,0.00049315,120]
[356545183,1742637089401,-500.0,0.00049315,120]
[356545184,1742637089411,-842.88,0.00049315,120]
[356545185,1742637089421,-500.0,0.00049315,120]
[356545186,1742637089431,-500.0,0.00049315,120]
[356545187,1742637089441,-500.0,0.00049315,120]
[356545188,1742637089450,-350.0,0.00049315,120]
[356545189,1742637089460,-965.16,0.00049315,120]
[356545190,1742637089469,-591.6,0.00049315,120]
[356545191,1742637089479,-1371.05,0.00049315,120]
[356545192,1742637089488,-1325.26,0.00049315,120]
[356545193,1742637089497,-558.56,0.00049315,120]
[356545194,1742637089506,-874.61,0.00049315,120]
[356545195,1742637089516,-902.88,0.00049315,120]
[356545196,1742637089526,-509.55,0.00049315,120]
[356545197,1742637089535,-500.0,0.00049315,120]
[356545198,1742637089545,-500.0,0.00049315,120]
[356545199,1742637089555,-500.0,0.00049315,120]
[356545200,1742637089565,-937.33,0.00049315,120]
[356545201,1742637089574,-500.0,0.00049315,120]
[356545202,1742637089583,-561.5967017,0.00049315,120]
[356545203,1742637089592,-1062.3,0.00049315,120]
[356545204,1742637089602,-600.78,0.00049315,120]
[356545205,1742637089611,-664.64,0.00049315,120]
[356545206,1742637089621,-668.71,0.00049315,120]
[356545207,1742637089630,-564.64,0.00049315,120]
[356545208,1742637089639,-1070.64,0.00049315,120]
[356545209,1742637089648,-979.48,0.00049315,120]
[356545210,1742637089657,-800.83,0.00049315,120]
[356545211,1742637089666,-500.0,0.00049315,120]
[356545212,1742637089676,-698.39,0.00049315,120]
[356545213,1742637089686,-500.0,0.00049315,120]
[356545214,1742637089695,-680.79,0.00049315,120]
[356545215,1742637089705,-514.68,0.00049315,120]
[356545216,1742637089714,-536.4,0.00049315,120]
[356545217,1742637089723,-500.0,0.00049315,120]
[356545218,1742637089733,-500.0,0.00049315,120]
[356545219,1742637089742,-500.0,0.00049315,120]
[356545220,1742637089751,-500.0,0.00049315,120]
[356545221,1742637089760,-500.0,0.00049315,120]
[356545222,1742637089770,-661.88,0.00049315,120]
[356545223,1742637089779,-500.0,0.00049315,120]
[356545224,1742637089788,-500.0,0.00049315,120]
[356545225,1742637089798,-500.0,0.00049315,120]
[356545226,1742637089807,-730.9,0.00049315,120]
[356545227,1742637089816,-1058.49,0.00049315,120]
[356545228,1742637089826,-500.0,0.00049315,120]
[356545229,1742637089835,-1233.22,0.00049315,120]
[356545230,1742637089843,-1327.63,0.00049315,120]
[356545231,1742637089852,-520.32,0.00049315,120]
[356545232,1742637089862,-896.4,0.00049315,120]
[356545233,1742637089871,-1347.94,0.00049315,120]
[356545234,1742637089880,-597.81,0.00049315,120]
[356545235,1742637089889,-788.73,0.00049315,120]
[356545236,1742637089898,-500.0,0.00049315,120]
[356545237,1742637089907,-500.0,0.00049315,120]
[356545238,1742637089916,-2023.49,0.00049315,120]
[356545239,1742637089926,-625.69,0.00049315,120]
[356545240,1742637089934,-1415.42,0.00049315,120]
[356545241,1742637089943,-556.5,0.00049315,120]
[356545242,1742637089952,-839.81,0.00049315,120]
[356545243,1742637089961,-500.0,0.00049315,120]
[356545244,1742637089970,-813.54,0.00049315,120]
[356545245,1742637089980,-570.18,0.00049315,120]
[356545246,1742637089989,-500.0,0.00049315,120]
[356545247,1742637089998,-500.0,0.00049315,120]
[356545248,1742637090007,-500.0,0.00049315,120]
[356545249,1742637090017,-621.41,0.00049315,120]
[356545250,1742637090026,-314.00417936,0.00049315,120]
[356545251,1742637090035,-300.0,0.00049315,120]
[356545252,1742637090044,-713.81,0.00049315,120]
[356545253,1742637090206,-500.0,0.00049315,120]
[356545254,1742637090217,-500.0,0.00049315,120]
[356545255,1742637090226,-1159.44,0.00049315,10]
[356545256,1742637090236,-639.03,0.00049315,120]
[356545257,1742637090245,-500.0,0.00049315,120]
[356545258,1742637090254,-521.66,0.00049315,120]
[356545259,1742637090263,-1837.38,0.00049315,120]
[356545260,1742637090272,-500.0,0.00049315,120]
[356545261,1742637090281,-562.42796013,0.00049315,120]
[356545262,1742637090290,-500.0,0.00049315,120]
[356545263,1742637090300,-500.0,0.00049315,120]
[356545264,1742637090309,-500.0,0.00049315,120]
[356545265,1742637090318,-500.0,0.00049315,120]
[356545266,1742637090328,-872.68,0.00049315,120]
[356545267,1742637090337,-500.0,0.00049315,120]
[356545268,1742637090349,-815.59,0.00049315,120]
[356545269,1742637090358,-564.59,0.00049315,120]
[356545270,1742637090368,-500.0,0.00049315,120]
[356545271,1742637090379,-500.0,0.00049315,120]
[356545272,1742637090388,-500.0,0.00049315,120]
[356545273,1742637090398,-629.6,0.00049315,120]
[356545274,1742637090407,-1219.87,0.00049315,120]
[356545275,1742637090417,-511.1,0.00049315,120]
[356545276,1742637090427,-500.0,0.00049315,120]
[356545277,1742637090436,-500.0,0.00049315,120]
[356545278,1742637090445,-500.0,0.00049315,120]
[356545279,1742637090455,-500.0,0.00049315,120]
[356545280,1742637090464,-973.06,0.00049315,120]
[356545281,1742637090473,-500.0,0.00049315,120]
[356545282,1742637090482,-624.39,0.00049315,120]
[356545283,1742637090492,-500.0,0.00049315,120]
[356545284,1742637090502,-1923.34,0.00049315,120]
[356545285,1742637090511,-500.0,0.00049315,120]
[356545286,1742637090523,-820.19,0.00049315,120]
[356545287,1742637090533,-665.21,0.00049315,120]
[356545288,1742637090542,-564.23,0.00049315,120]
[356545289,1742637090553,-500.0,0.00049315,120]
[356545290,1742637090567,-500.0,0.00049315,120]
[356545291,1742637090576,-1241.85,0.00049315,120]
[356545292,1742637090585,-500.0,0.00049315,120]
[356545293,1742637090598,-619.76,0.00049315,120]
[356545294,1742637090607,-500.0,0.00049315,120]
[356545295,1742637090618,-500.0,0.00049315,120]
[356545296,1742637090627,-591.13,0.00049315,120]
[356545297,1742637090637,-180.48032605,0.00049315,60]
[356545298,1742637090646,-500.0,0.00049315,120]
[356545299,1742637090658,-500.0,0.00049315,120]
[356545300,1742637090667,-611.96,0.00049315,120]
[356545301,1742637090676,-500.0,0.00049315,120]
[356545302,1742637090685,-645.8,0.00049315,120]
[356545303,1742637090694,-529.2,0.00049315,120]
[356545304,1742637090704,-500.0,0.00049315,120]
[356545305,1742637090713,-601.81,0.00049315,120]
[356545306,1742637090722,-641.64,0.00049315,120]
[356545307,1742637090731,-500.0,0.00049315,120]
[356545308,1742637090741,-640.55,0.00049315,120]
[356545309,1742637090751,-500.0,0.00049315,120]
[356545310,1742637090762,-627.71,0.00049315,120]
[356545311,1742637090771,-701.19,0.00049315,120]
[356545312,1742637090780,-1353.99,0.00049315,120]
[356545313,1742637090789,-500.0,0.00049315,120]
[356545314,1742637090798,-500.0,0.00049315,120]
[356545315,1742637090807,-658.79,0.00049315,120]
[356545316,1742637090816,-1518.81,0.00049315,120]
[356545317,1742637090824,-1579.16,0.00049315,120]
[356545318,1742637090834,-842.72,0.00049315,120]
[356545319,1742637090843,-500.0,0.00049315,120]
[356545320,1742637090852,-1920.4,0.00049315,120]
[356545321,1742637090861,-500.0,0.00049315,120]
[356545322,1742637090870,-500.0,0.00049315,120]
[356545323,1742637090879,-500.0,0.00049315,120]
[356545324,1742637090888,-5245.81,0.00049315,120]
[356545325,1742637090897,-500.0,0.00049315,120]
[356545326,1742637090906,-2131.02,0.00049315,120]
[356545327,1742637090915,-500.0,0.00049315,120]
[356545328,1742637090924,-983.72,0.00049315,120]
[356545329,1742637090933,-500.0,0.00049315,120]
[356545330,1742637090943,-1445.99,0.00049315,120]
[356545331,1742637090952,-585.87,0.00049315,120]
[356545332,1742637090961,-689.75,0.00049315,120]
[356545333,1742637090970,-500.0,0.00049315,120]
[356545334,1742637090979,-500.0,0.00049315,120]
[356545335,1742637090988,-846.6,0.00049315,120]
[356545336,1742637090997,-587.36,0.00049315,120]
[356545337,1742637091007,-635.78,0.00049315,120]
[356545338,1742637091017,-1413.44,0.00049315,120]
[356545339,1742637091026,-500.0,0.00049315,120]
[356545340,1742637091035,-4235.9,0.00049315,2]
[356545341,1742637091045,-500.0,0.00049315,120]
[356545342,1742637091054,-500.0,0.00049315,120]
[356545343,1742637091064,-1454.51,0.00049315,120]
[356545344,1742637091074,-285.17838422,0.00049315,120]
[356545345,1742637091083,-500.0,0.00049315,120]
[356545346,1742637091093,-500.0,0.00049315,120]
[356545347,1742637091102,-970.54,0.00049315,120]
[356545348,1742637091112,-586.12,0.00049315,120]
[356545349,1742637091122,-500.0,0.00049315,120]
[356545350,1742637091140,-635.48,0.00049315,120]
[356545351,1742637091149,-647.73,0.00049315,120]
[356545352,1742637091158,-996.39,0.00049315,120]
[356545353,1742637091167,-1824.31,0.00049315,120]
[356545354,1742637091176,-500.0,0.00049315,120]
[356545355,1742637091185,-833.59,0.00049315,120]
[356545356,1742637091195,-809.31,0.00049315,120]
[356545357,1742637091206,-2000.27,0.00049315,120]
[356545358,1742637091216,-1128.13,0.00049315,120]
[356545359,1742637091225,-205.85,0.00049315,7]
[356545360,1742637091234,-2750.71,0.00049315,120]
[356545361,1742637091243,-500.0,0.00049315,120]
[356545362,1742637091252,-500.0,0.00049315,120]
[356545363,1742637091261,-972.4,0.00049315,120]
[356545364,1742637091270,-912.87,0.00049315,120]
[356545365,1742637091280,-3375.17,0.00049315,120]
[356545366,1742637091290,-558.47,0.00049315,120]
[356545367,1742637091300,-1367.27,0.00049315,120]
[356545368,1742637091309,-743.38,0.00049315,120]
[356545369,1742637091318,-520.84,0.00049315,120]
[356545370,1742637091327,-500.0,0.00049315,120]
[356545371,1742637091336,-1219.57,0.00049315,120]
[356545372,1742637091349,-500.0,0.00049315,120]
[356545373,1742637091358,-500.0,0.00049315,120]
[356545374,1742637091368,-2818.72,0.00049315,120]
[356545375,1742637091377,-825.87,0.00049315,120]
[356545376,1742637091387,-500.0,0.00049315,120]
[356545377,1742637091396,-635.13,0.00049315,120]
[356545378,1742637091405,-827.5,0.00049315,120]
[356545379,1742637091414,-695.68,0.00049315,120]
[356545380,1742637091423,-500.0,0.00049315,120]
[356545381,1742637091434,-666.85,0.00049315,120]
[356545382,1742637091444,-606.96,0.00049315,120]
[356545383,1742637091453,-500.0,0.00049315,120]
[356545384,1742637091465,-1356.69,0.00049315,7]
[356545385,1742637091475,-1736.83,0.00049315,120]
[356545386,1742637091491,-913.27,0.00049315,120]
[356545387,1742637091512,-599.99,0.00049315,120]
[356545388,1742637091528,-500.0,0.00049315,120]
[356545389,1742637091546,-527.15,0.00049315,120]
[356545390,1742637091563,-500.0,0.00049315,120]
[356545391,1742637091579,-597.23,0.00049315,120]
[356545392,1742637091598,-501.82,0.00049315,120]
[356545393,1742637091617,-1106.0,0.00049315,120]
[356545394,1742637091636,-882.82,0.00049315,120]
[356545395,1742637091652,-500.0,0.00049315,120]
[356545396,1742637091673,-1127.56,0.00049315,120]
[356545397,1742637091690,-1089.93,0.00049315,7]
[356545398,1742637091706,-500.0,0.00049315,120]
[356545399,1742637091729,-502.2,0.00049315,120]
[356545400,1742637091742,-500.0,0.00049315,120]
[356545401,1742637091758,-1068.57,0.00049315,120]
[356545402,1742637091773,-1131.58,0.00049315,120]
[356545403,1742637091785,-529.97,0.00049315,120]
[356545404,1742637091802,-500.0,0.00049315,120]
[356545405,1742637091814,-559.18,0.00049315,120]
[356545406,1742637091834,-500.0,0.00049315,120]
[356545407,1742637091851,-1578.59,0.00049315,120]
[356545408,1742637091870,-5060.41,0.00049315,120]
[356545409,1742637091886,-500.0,0.00049315,120]
[356545410,1742637091903,-500.0,0.00049315,120]
[356545411,1742637091918,-938.19,0.00049315,120]
[356545412,1742637091933,-567.38,0.00049315,120]
[356545413,1742637091948,-617.69,0.00049315,120]
[356545414,1742637091963,-1439.24,0.00049315,120]
[356545415,1742637091977,-1288.21,0.00049315,120]
[356545416,1742637091992,-3623.73,0.00049315,120]
[356545417,1742637092007,-1914.19,0.00049315,120]
[356545418,1742637092021,-1583.29,0.00049315,120]
[356545419,1742637092035,-1724.46,0.00049315,120]
[356545420,1742637092049,-2003.91,0.00049315,100]
[356545421,1742637092062,-1585.84,0.00049315,120]
[356545422,1742637092076,-500.0,0.00049315,120]
[356545423,1742637092091,-2253.09,0.00049315,120]
[356545424,1742637092105,-500.0,0.00049315,120]
[356545425,1742637092119,-500.0,0.00049315,120]
[356545426,1742637092133,-645.37,0.00049315,120]
[356545427,1742637092146,-691.36,0.00049315,120]
[356545428,1742637092161,-817.6,0.00049315,120]
[356545429,1742637092174,-523.41,0.00049315,120]
[356545430,1742637092189,-1609.26,0.00049315,120]
[356545431,1742637092203,-1857.45,0.00049315,120]
[356545432,1742637092218,-1181.24,0.00049315,120]
[356545433,1742637092233,-592.73,0.00049315,120]
[356545434,1742637092247,-1111.56,0.00049315,120]
[356545435,1742637092262,-500.0,0.00049315,120]
[356545436,1742637092275,-500.0,0.00049315,120]
[356545437,1742637092289,-1095.08,0.00049315,120]
[356545438,1742637092304,-1041.52,0.00049315,120]
[356545439,1742637092317,-500.0,0.00049315,120]
[356545440,1742637092331,-624.9,0.00049315,120]
[356545441,1742637092348,-796.13,0.00049315,120]
[356545442,1742637092361,-751.81,0.00049315,120]
[356545443,1742637092376,-722.59,0.00049315,120]
[356545444,1742637092392,-554.28,0.00049315,120]
[356545445,1742637092406,-555.78,0.00049315,120]
[356545446,1742637092420,-500.0,0.00049315,120]
[356545447,1742637092434,-3273.79,0.00049315,120]
[356545448,1742637092449,-2930.96,0.00049315,120]
[356545449,1742637092463,-1052.7,0.00049315,120]
[356545450,1742637092477,-504.22,0.00049315,120]
[356545451,1742637092491,-500.0,0.00049315,120]
[356545452,1742637092504,-1485.55,0.00049315,120]
[356545453,1742637092518,-504.42,0.00049315,120]
[356545454,1742637092532,-177.59386911,0.00049315,120]
[356545455,1742637092545,-1080.77,0.00049315,120]
[356545456,1742637092558,-657.13,0.00049315,120]
[356545457,1742637092573,-500.0,0.00049315,120]
[356545458,1742637092587,-517.31,0.00049315,120]
[356545459,1742637092601,-760.27,0.00049315,120]
[356545460,1742637092614,-899.53,0.00049315,120]
[356545461,1742637092629,-500.0,0.00049315,120]
[356545462,1742637092643,-500.0,0.00049315,120]
[356545463,1742637092657,-692.39,0.00049315,120]
[356545464,1742637092670,-500.0,0.00049315,120]
[356545465,1742637092684,-500.0,0.00049315,120]
[356545466,1742637092697,-1026.62,0.00049315,120]
[356545467,1742637092711,-555.67,0.00049315,120]
[356545468,1742637092725,-1504.12,0.00049315,120]
[356545469,1742637092739,-655.7,0.00049315,120]
[356545470,1742637092752,-500.0,0.00049315,120]
[356545471,1742637092765,-668.14,0.00049315,120]
[356545472,1742637092779,-500.0,0.00049315,20]
[356545473,1742637092792,-529.96,0.00049315,120]
[356545474,1742637092806,-1785.62,0.00049315,120]
[356545475,1742637092820,-56672.48,0.00049315,120]
[356545476,1742637092833,-628.69524043,0.00049315,120]
[356545477,1742637092847,-874.3,0.00049315,120]
[356545478,1742637092864,-500.0,0.00049315,120]
[356545479,1742637092877,-892.9,0.00049315,120]
[356545480,1742637092891,-507.98,0.00049315,120]
[356545481,1742637092904,-767.43,0.00049315,120]
[356545482,1742637092918,-818.49,0.00049315,120]
[356545483,1742637092931,-574.58,0.00049315,120]
[356545484,1742637092945,-622.98,0.00049315,120]
[356545485,1742637092958,-1187.99,0.00049315,120]
[356545486,1742637092972,-594.34,0.00049315,120]
[356545487,1742637092985,-500.0,0.00049315,120]
[356545488,1742637092998,-724.76,0.00049315,120]
[356545489,1742637093012,-500.0,0.00049315,120]
[356545490,1742637093026,-554.79,0.00049315,120]
[356545491,1742637093041,-500.0,0.00049315,120]
[356545492,1742637093055,-864.88,0.00049315,120]
[356545493,1742637093068,-664.62,0.00049315,120]
[356545494,1742637093083,-870.55,0.00049315,120]
[356545495,1742637093096,-500.0,0.00049315,120]
[356545496,1742637093109,-3152.52,0.00049315,120]
[356545497,1742637093123,-1001.37,0.00049315,120]
[356545498,1742637093137,-500.0,0.00049318,120]
[356545499,1742637093151,-219.29507923,0.00049325,35]
[356545500,1742637093165,-5819.43921899,0.00049346,120]
[356545501,1742637093180,-154.4,0.000494,45]
[356545502,1742637093194,-154.4,0.000494,45]
[356545503,1742637093203,-350.0,0.000494,120]
[356545504,1742637093213,-828.93361624,0.000495,120]
[356545505,1742637093222,-3148.62421855,0.000495,120]
[356545506,1742637093233,-500.0,0.00049588,120]
[356545507,1742637093242,-904.785999,0.00049589,120]
[356545508,1742637093252,-733.844647,0.00049589,120]
[356545509,1742637093262,-500.0,0.00049589,120]
[356545510,1742637093272,-500.0,0.00049589,120]
[356545511,1742637093282,-739.16,0.00049589,120]
[356545512,1742637093291,-500.0,0.00049589,120]
[356545513,1742637093590,-500.0,0.00049589,120]
[356545514,1742637093619,-500.0,0.00049589,120]
[356545515,1742637093643,-950.82,0.00049589,120]
[356545516,1742637093653,-517.63,0.00049589,120]
[356545517,1742637093662,-1049.72,0.00049589,120]
[356545518,1742637093672,-653.69,0.00049589,120]
[356545519,1742637093682,-907.89,0.00049589,120]
[356545520,1742637093691,-600.62,0.00049589,120]
[356545521,1742637093701,-364.82612756,0.00049589,120]
[356545522,1742637093710,-232.31610116,0.00049589,120]
[356545523,1742637093720,-536.26267558,0.00049589,120]
[356545524,1742637093730,-500.0,0.00049589,120]
[356545525,1742637093739,-500.0,0.00049589,120]
[356545526,1742637093749,-500.0,0.00049589,120]
[356545527,1742637093758,-500.0,0.00049589,120]
[356545528,1742637093768,-501.22,0.00049589,120]
[356545529,1742637093778,-542.56468165,0.00049589,120]
[356545530,1742637093787,-468.23935101,0.00049589,120]
[356545531,1742637093796,-761.07,0.00049589,120]
[356545532,1742637093806,-956.79,0.00049589,120]
[356545533,1742637093816,-500.0,0.00049589,120]
[356545534,1742637093826,-331.8051222,0.00049589,120]
[356545535,1742637093835,-963.36,0.00049589,60]
[356545536,1742637093845,-782.21,0.00049589,120]
[356545537,1742637093854,-500.0,0.00049589,120]
[356545538,1742637093863,-584.06,0.00049589,120]
[356545539,1742637093873,-673.59,0.00049589,120]
[356545540,1742637093883,-502.51,0.00049589,120]
[356545541,1742637093893,-500.0,0.00049589,120]
[356545542,1742637093902,-500.0,0.00049589,120]
[356545543,1742637093911,-1473.31,0.00049589,120]
[356545544,1742637093921,-505.35510495,0.00049589,120]
[356545545,1742637093931,-500.0,0.00049589,120]
[356545546,1742637093940,-751.46,0.00049589,120]
[356545547,1742637093949,-1642.39,0.00049589,120]
[356545548,1742637093958,-654.04,0.00049589,120]
[356545549,1742637093967,-674.52,0.00049589,120]
[356545550,1742637093976,-520.54,0.00049589,120]
[356545551,1742637093986,-500.0,0.00049589,120]
[356545552,1742637093995,-500.0,0.00049589,120]
[356545553,1742637094004,-781.34,0.00049589,120]
[356545554,1742637094013,-500.0,0.00049589,120]
[356545555,1742637094023,-532.16,0.00049589,120]
[356545556,1742637094031,-500.0,0.00049589,120]
[356545557,1742637094040,-601.78,0.00049589,120]
[356545558,1742637094049,-500.0,0.00049589,120]
[356545559,1742637094058,-691.76,0.00049589,120]
[356545560,1742637094067,-500.0,0.00049589,120]
[356545561,1742637094077,-802.29,0.00049589,120]
[356545562,1742637094086,-500.0,0.00049589,120]
[356545563,1742637094095,-580.53,0.00049589,120]
[356545564,1742637094105,-2210.41,0.00049589,120]
[356545565,1742637094114,-904.56,0.00049589,120]
[356545566,1742637094123,-500.0,0.00049589,120]
[356545567,1742637094132,-793.91,0.00049589,120]
[356545568,1742637094143,-706.55,0.00049589,120]
[356545569,1742637094152,-834.3,0.00049589,120]
[356545570,1742637094162,-671.78,0.00049589,120]
[356545571,1742637094171,-500.0,0.00049589,120]
[356545572,1742637094180,-500.0,0.00049589,120]
[356545573,1742637094190,-1807.75,0.00049589,120]
[356545574,1742637094199,-500.0,0.00049589,120]
[356545575,1742637094209,-842.88,0.00049589,120]
[356545576,1742637094218,-500.0,0.00049589,120]
[356545577,1742637094228,-500.0,0.00049589,120]
[356545578,1742637094237,-500.0,0.00049589,120]
[356545579,1742637094246,-350.0,0.00049589,120]
[356545580,1742637094255,-965.16,0.00049589,120]
[356545581,1742637094264,-591.6,0.00049589,120]
[356545582,1742637094274,-1371.05,0.00049589,120]
[356545583,1742637094283,-1325.26,0.00049589,120]
[356545584,1742637094292,-558.56,0.00049589,120]
[356545585,1742637094301,-874.61,0.00049589,120]
[356545586,1742637094311,-902.88,0.00049589,120]
[356545587,1742637094321,-509.55,0.00049589,120]
[356545588,1742637094330,-500.0,0.00049589,120]
[356545589,1742637094340,-500.0,0.00049589,120]
[356545590,1742637094352,-500.0,0.00049589,120]
[356545591,1742637094362,-937.33,0.00049589,120]
[356545592,1742637094371,-500.0,0.00049589,120]
[356545593,1742637094381,-1062.3,0.00049589,120]
[356545594,1742637094391,-600.78,0.00049589,120]
[356545595,1742637094400,-664.64,0.00049589,120]
[356545596,1742637094409,-668.71,0.00049589,120]
[356545597,1742637094419,-564.64,0.00049589,120]
[356545598,1742637094428,-1070.64,0.00049589,120]
[356545599,1742637094438,-979.48,0.00049589,120]
[356545600,1742637094448,-800.83,0.00049589,120]
[356545601,1742637094458,-500.0,0.00049589,120]
[356545602,1742637094467,-698.39,0.00049589,120]
[356545603,1742637094477,-500.0,0.00049589,120]
[356545604,1742637094486,-680.79,0.00049589,120]
[356545605,1742637094495,-514.68,0.00049589,120]
[356545606,1742637094505,-536.4,0.00049589,120]
[356545607,1742637094514,-500.0,0.00049589,120]
[356545608,1742637094524,-324.37164585,0.00049589,120]
[356545609,1742637094533,-500.0,0.00049589,120]
[356545610,1742637094542,-500.0,0.00049589,120]
[356545611,1742637094552,-500.0,0.00049589,120]
[356545612,1742637094560,-661.88,0.00049589,120]
[356545613,1742637094570,-500.0,0.00049589,120]
[356545614,1742637094579,-500.0,0.00049589,120]
[356545615,1742637094589,-500.0,0.00049589,120]
[356545616,1742637094598,-730.9,0.00049589,120]
[356545617,1742637094608,-1058.49,0.00049589,120]
[356545618,1742637094617,-500.0,0.00049589,120]
[356545619,1742637094626,-1233.22,0.00049589,120]
[356545620,1742637094636,-1327.63,0.00049589,120]
[356545621,1742637094645,-520.32,0.00049589,120]
[356545622,1742637094654,-896.4,0.00049589,120]
[356545623,1742637094664,-1347.94,0.00049589,120]
[356545624,1742637094673,-597.81,0.00049589,120]
[356545625,1742637094684,-788.73,0.00049589,120]
[356545626,1742637094693,-500.0,0.00049589,120]
[356545627,1742637094703,-500.0,0.00049589,120]
[356545628,1742637094711,-2023.49,0.00049589,120]
[356545629,1742637094720,-625.69,0.00049589,120]
[356545630,1742637094729,-1415.42,0.00049589,120]
[356545631,1742637094739,-556.5,0.00049589,120]
[356545632,1742637094748,-839.81,0.00049589,120]
[356545633,1742637094758,-500.0,0.00049589,120]
[356545634,1742637094768,-813.54,0.00049589,120]
[356545635,1742637094778,-570.18,0.00049589,120]
[356545636,1742637094787,-500.0,0.00049589,120]
[356545637,1742637094796,-500.0,0.00049589,120]
[356545638,1742637094805,-500.0,0.00049589,120]
[356545639,1742637094814,-621.41,0.00049589,120]
[356545640,1742637094823,-300.0,0.00049589,120]
[356545641,1742637094832,-713.81,0.00049589,120]
[356545642,1742637094841,-500.0,0.00049589,120]
[356545643,1742637094850,-500.0,0.00049589,120]
[356545644,1742637094859,-1159.44,0.00049589,10]
[356545645,1742637094869,-639.03,0.00049589,120]
[356545646,1742637094878,-500.0,0.00049589,120]
[356545647,1742637094887,-521.66,0.00049589,120]
[356545648,1742637094896,-1837.38,0.00049589,120]
[356545649,1742637094905,-500.0,0.00049589,120]
[356545650,1742637094915,-500.0,0.00049589,120]
[356545651,1742637094924,-500.0,0.00049589,120]
[356545652,1742637094934,-500.0,0.00049589,120]
[356545653,1742637094943,-500.0,0.00049589,120]
[356545654,1742637094953,-872.68,0.00049589,120]
[356545655,1742637094961,-500.0,0.00049589,120]
[356545656,1742637094971,-815.59,0.00049589,120]
[356545657,1742637094980,-564.59,0.00049589,120]
[356545658,1742637094990,-500.0,0.00049589,120]
[356545659,1742637094999,-500.0,0.00049589,120]
[356545660,1742637095009,-500.0,0.00049589,120]
[356545661,1742637095019,-629.6,0.00049589,120]
[356545662,1742637095028,-1219.87,0.00049589,120]
[356545663,1742637095038,-511.1,0.00049589,120]
[356545664,1742637095047,-435.1834281,0.00049589,120]
[356545665,1742637095056,-500.0,0.00049589,120]
[356545666,1742637095066,-500.0,0.00049589,120]